[Event "Titled Tuesday Blitz July 25 Late 2023"]
[White "Rangel, Daniel"]
[Black "Dimitrov, Atanas"]
[WhiteFideId "2124475"]
[BlackFideId "2901315"]
[WhiteElo "2477"]
[BlackElo "2689"]
[Result "0-1"]
[Round "11"]
[TimeControl "180+2"]
[Date "2023.07.25"]
[WhiteClock "0:00:05"]
[BlackClock "0:00:08"]
[Board "28"]

1. c4 {[%clk 0:03:00]}  e5 {[%clk 0:02:59]} 2. g3 {[%clk 0:03:00]}  g6 {[%clk 0:03:00]} 3. Bg2 {[%clk 0:03:00]}  Bg7 {[%clk 0:03:00]} 4. Nc3 {[%clk 0:03:00]}  Ne7 {[%clk 0:03:00]} 5. e3 {[%clk 0:03:01]}  O-O {[%clk 0:03:00]} 6. Nge2 {[%clk 0:03:01]}  c6 {[%clk 0:02:57]} 7. d4 {[%clk 0:02:58]}  exd4 {[%clk 0:02:56]} 8. Nxd4 {[%clk 0:02:59]}  d6 {[%clk 0:02:54]} 9. O-O {[%clk 0:02:59]}  Nd7 {[%clk 0:02:54]} 10. b3 {[%clk 0:02:54]}  a5 {[%clk 0:02:53]} 11. Bb2 {[%clk 0:02:52]}  Nc5 {[%clk 0:02:51]} 12. Qd2 {[%clk 0:02:47]}  Qc7 {[%clk 0:02:50]} 13. Rad1 {[%clk 0:02:44]}  Rd8 {[%clk 0:02:50]} 14. h3 {[%clk 0:02:40]}  Bd7 {[%clk 0:02:41]} 15. Ba1 {[%clk 0:02:31]}  Nf5 {[%clk 0:02:29]} 16. Nxf5 {[%clk 0:02:21]}  Bxf5 {[%clk 0:02:30]} 17. e4 {[%clk 0:02:18]}  Be6 {[%clk 0:02:27]} 18. f4 {[%clk 0:02:14]}  f5 {[%clk 0:02:25]} 19. Rfe1 {[%clk 0:02:02]}  Qf7 {[%clk 0:02:17]} 20. Kh2 {[%clk 0:01:45]}  fxe4 {[%clk 0:01:58]} 21. Nxe4 {[%clk 0:01:44]}  Nxe4 {[%clk 0:01:58]} 22. Bxe4 {[%clk 0:01:41]}  Bxa1 {[%clk 0:01:59]} 23. Rxa1 {[%clk 0:01:41]}  d5 {[%clk 0:01:59]} 24. cxd5 {[%clk 0:01:34]}  Bxd5 {[%clk 0:02:00]} 25. Bxd5 {[%clk 0:01:30]}  Rxd5 {[%clk 0:02:00]} 26. Qe2 {[%clk 0:01:27]}  a4 {[%clk 0:01:33]} 27. Qe3 {[%clk 0:00:41]}  axb3 {[%clk 0:01:15]} 28. axb3 {[%clk 0:00:42]}  Rad8 {[%clk 0:01:15]} 29. Re2 {[%clk 0:00:38]}  Rd3 {[%clk 0:01:12]} 30. Qe7 {[%clk 0:00:18]}  Rd2 {[%clk 0:00:32]} 31. Qxf7+ {[%clk 0:00:13]}  Kxf7 {[%clk 0:00:33]} 32. Ra2 {[%clk 0:00:13]}  Rxa2 {[%clk 0:00:30]} 33. Rxa2 {[%clk 0:00:13]}  Rd3 {[%clk 0:00:30]} 34. Rb2 {[%clk 0:00:13]}  Ke6 {[%clk 0:00:28]} 35. Re2+ {[%clk 0:00:12]}  Kd7 {[%clk 0:00:25]} 36. Rb2 {[%clk 0:00:12]}  Kd6 {[%clk 0:00:26]} 37. h4 {[%clk 0:00:11]}  Kd5 {[%clk 0:00:25]} 38. Re2 {[%clk 0:00:08]}  Rxb3 {[%clk 0:00:23]} 39. Re7 {[%clk 0:00:08]}  c5 {[%clk 0:00:19]} 40. Rxh7 {[%clk 0:00:08]}  c4 {[%clk 0:00:20]} 41. Rc7 {[%clk 0:00:07]}  b5 {[%clk 0:00:18]} 42. f5 {[%clk 0:00:07]}  gxf5 {[%clk 0:00:18]} 43. h5 {[%clk 0:00:07]}  Ra3 {[%clk 0:00:14]} 44. h6 {[%clk 0:00:07]}  Ra8 {[%clk 0:00:15]} 45. h7 {[%clk 0:00:07]}  b4 {[%clk 0:00:16]} 46. Rb7 {[%clk 0:00:07]}  b3 {[%clk 0:00:15]} 47. Kh3 {[%clk 0:00:07]}  Kc6 {[%clk 0:00:14]} 48. Rb4 {[%clk 0:00:06]}  Kc5 {[%clk 0:00:14]} 49. Rb7 {[%clk 0:00:06]}  Rh8 {[%clk 0:00:07]} 50. Kh4 {[%clk 0:00:05]}  c3 {[%clk 0:00:03]} 51. Rxb3 {[%clk 0:00:03]}  Rxh7+ {[%clk 0:00:04]} 52. Kg5 {[%clk 0:00:03]}  Rg7+ {[%clk 0:00:03]} 53. Kxf5 {[%clk 0:00:03]}  Rxg3 {[%clk 0:00:03]} 54. Ke4 {[%clk 0:00:03]}  Kc4 {[%clk 0:00:04]} 55. Rb8 {[%clk 0:00:03]}  Rg4+ {[%clk 0:00:03]} 56. Ke3 {[%clk 0:00:03]}  Rg3+ {[%clk 0:00:03]} 57. Ke2 {[%clk 0:00:03]}  Rg2+ {[%clk 0:00:04]} 58. Ke3 {[%clk 0:00:02]}  Rg5 {[%clk 0:00:02]} 59. Ke2 {[%clk 0:00:02]}  Rd5 {[%clk 0:00:02]} 60. Rc8+ {[%clk 0:00:03]}  Kb3 {[%clk 0:00:03]} 61. Rb8+ {[%clk 0:00:03]}  Kc2 {[%clk 0:00:03]} 62. Rc8 {[%clk 0:00:04]}  Re5+ {[%clk 0:00:04]} 63. Kf2 {[%clk 0:00:03]}  Kd2 {[%clk 0:00:04]} 64. Rd8+ {[%clk 0:00:03]}  Kc1 {[%clk 0:00:05]} 65. Rc8 {[%clk 0:00:04]}  c2 {[%clk 0:00:05]} 66. Kf1 {[%clk 0:00:04]}  Rb5 {[%clk 0:00:05]} 67. Ke2 {[%clk 0:00:03]}  Kb2 {[%clk 0:00:06]} 68. Kd2 {[%clk 0:00:04]}  Rd5+ {[%clk 0:00:06]} 69. Ke2 {[%clk 0:00:04]}  c1=Q {[%clk 0:00:07]} 70. Rb8+ {[%clk 0:00:05]}  Ka3 {[%clk 0:00:07]} 71. Ra8+ {[%clk 0:00:06]}  Kb4 {[%clk 0:00:08]} 72. Rb8+ {[%clk 0:00:06]}  Ka5 {[%clk 0:00:08]} 73. Ra8+ {[%clk 0:00:07]}  Kb6 {[%clk 0:00:09]} 74. Rc8 {[%clk 0:00:05]}  Qxc8 {[%clk 0:00:08]} 0-1


[Site "https://www.chess.com"]

[Event "Titled Tuesday Blitz July 25 Late 2023"]
[White "Ibarra Jerez, Jose Carlos"]
[Black "Vovk, Orest"]
[WhiteFideId "2226332"]
[BlackFideId "14113490"]
[WhiteElo "2874"]
[BlackElo "2587"]
[Result "1-0"]
[Round "11"]
[TimeControl "180+2"]
[Date "2023.07.25"]
[WhiteClock "0:00:11"]
[BlackClock "0:00:05"]
[Board "29"]

1. b3 {[%clk 0:02:59]}  Nh6 {[%clk 0:02:59]} 2. Bb2 {[%clk 0:02:59]}  Rg8 {[%clk 0:02:59]} 3. e4 {[%clk 0:02:59]}  g5 {[%clk 0:02:59]} 4. d4 {[%clk 0:02:58]}  d5 {[%clk 0:02:52]} 5. exd5 {[%clk 0:02:57]}  Qxd5 {[%clk 0:02:51]} 6. c4 {[%clk 0:02:57]}  Qe4+ {[%clk 0:02:51]} 7. Ne2 {[%clk 0:02:56]}  Bf5 {[%clk 0:02:45]} 8. Nc3 {[%clk 0:02:55]}  Qc2 {[%clk 0:02:44]} 9. Qxc2 {[%clk 0:02:46]}  Bxc2 {[%clk 0:02:45]} 10. Nd5 {[%clk 0:02:43]}  Na6 {[%clk 0:02:42]} 11. h4 {[%clk 0:02:43]}  g4 {[%clk 0:02:37]} 12. Ne3 {[%clk 0:02:43]}  Bf5 {[%clk 0:02:27]} 13. a3 {[%clk 0:02:34]}  O-O-O {[%clk 0:02:21]} 14. O-O-O {[%clk 0:02:33]}  Bg7 {[%clk 0:02:13]} 15. Ng3 {[%clk 0:02:31]}  Bd7 {[%clk 0:02:11]} 16. Bd3 {[%clk 0:02:31]}  Rh8 {[%clk 0:01:46]} 17. Nh5 {[%clk 0:02:29]}  Bf8 {[%clk 0:01:44]} 18. d5 {[%clk 0:02:27]}  f6 {[%clk 0:01:44]} 19. b4 {[%clk 0:02:24]}  Nf7 {[%clk 0:01:32]} 20. c5 {[%clk 0:02:22]}  Ne5 {[%clk 0:01:22]} 21. Bxa6 {[%clk 0:01:57]}  bxa6 {[%clk 0:01:20]} 22. c6 {[%clk 0:01:58]}  Be8 {[%clk 0:01:17]} 23. Nf4 {[%clk 0:01:59]}  Bf7 {[%clk 0:01:09]} 24. Nf5 {[%clk 0:01:53]}  h5 {[%clk 0:00:55]} 25. Rhe1 {[%clk 0:01:47]}  Rd6 {[%clk 0:00:09]} 26. Rxe5 {[%clk 0:01:19]}  fxe5 {[%clk 0:00:08]} 27. Bxe5 {[%clk 0:01:20]}  Rh7 {[%clk 0:00:02]} 28. Bxd6 {[%clk 0:01:15]}  exd6 {[%clk 0:00:03]} 29. Re1 {[%clk 0:01:13]}  Kd8 {[%clk 0:00:03]} 30. Ne6+ {[%clk 0:01:12]}  Bxe6 {[%clk 0:00:03]} 31. dxe6 {[%clk 0:01:06]}  Be7 {[%clk 0:00:03]} 32. Kd2 {[%clk 0:00:57]}  Rh8 {[%clk 0:00:04]} 33. Kd3 {[%clk 0:00:42]}  Rf8 {[%clk 0:00:04]} 34. Ke4 {[%clk 0:00:20]}  Rf6 {[%clk 0:00:04]} 35. Rd1 {[%clk 0:00:20]}  Rxe6+ {[%clk 0:00:03]} 36. Kf4 {[%clk 0:00:19]}  Bf6 {[%clk 0:00:03]} 37. Rd5 {[%clk 0:00:16]}  Re2 {[%clk 0:00:03]} 38. Kg3 {[%clk 0:00:12]}  Be5+ {[%clk 0:00:03]} 39. f4 {[%clk 0:00:12]}  gxf3+ {[%clk 0:00:02]} 40. Kxf3 {[%clk 0:00:13]}  Ra2 {[%clk 0:00:02]} 41. Rd3 {[%clk 0:00:12]}  a5 {[%clk 0:00:01]} 42. bxa5 {[%clk 0:00:10]}  Rc2 {[%clk 0:00:02]} 43. Nd4 {[%clk 0:00:06]}  Bxd4 {[%clk 0:00:01]} 44. Rxd4 {[%clk 0:00:07]}  Rc3+ {[%clk 0:00:02]} 45. Kf4 {[%clk 0:00:06]}  Rxc6 {[%clk 0:00:03]} 46. Rd5 {[%clk 0:00:06]}  Rc5 {[%clk 0:00:02]} 47. Rxc5 {[%clk 0:00:03]}  dxc5 {[%clk 0:00:03]} 48. g4 {[%clk 0:00:03]}  hxg4 {[%clk 0:00:01]} 49. Kxg4 {[%clk 0:00:04]}  c4 {[%clk 0:00:02]} 50. Kf3 {[%clk 0:00:04]}  c5 {[%clk 0:00:02]} 51. Ke3 {[%clk 0:00:04]}  Kd7 {[%clk 0:00:02]} 52. Kd2 {[%clk 0:00:05]}  Ke6 {[%clk 0:00:03]} 53. Kc3 {[%clk 0:00:06]}  Kd5 {[%clk 0:00:03]} 54. h5 {[%clk 0:00:06]}  Ke6 {[%clk 0:00:03]} 55. Kxc4 {[%clk 0:00:07]}  Kf5 {[%clk 0:00:03]} 56. Kxc5 {[%clk 0:00:07]}  Kg5 {[%clk 0:00:04]} 57. Kc6 {[%clk 0:00:08]}  Kxh5 {[%clk 0:00:05]} 58. Kb7 {[%clk 0:00:09]}  Kg6 {[%clk 0:00:04]} 59. Kxa7 {[%clk 0:00:10]}  Kf7 {[%clk 0:00:05]} 60. Kb7 {[%clk 0:00:10]}  Ke8 {[%clk 0:00:05]} 61. a6 {[%clk 0:00:11]} 1-0


[Site "https://www.chess.com"]

[Event "Titled Tuesday Blitz July 25 Late 2023"]
[White "Hambleton, Aman"]
[Black "Kochiev, Ivan"]
[WhiteFideId "2606577"]
[BlackFideId "2917890"]
[WhiteElo "2753"]
[BlackElo "2559"]
[Result "1-0"]
[Round "11"]
[TimeControl "180+2"]
[Date "2023.07.25"]
[WhiteClock "0:00:04"]
[BlackClock "0:00:00"]
[Board "32"]

1. c4 {[%clk 0:03:00]}  Nf6 {[%clk 0:02:58]} 2. d4 {[%clk 0:03:01]}  e6 {[%clk 0:02:58]} 3. Nc3 {[%clk 0:03:01]}  c5 {[%clk 0:02:58]} 4. d5 {[%clk 0:03:01]}  exd5 {[%clk 0:02:59]} 5. cxd5 {[%clk 0:03:02]}  d6 {[%clk 0:03:00]} 6. e4 {[%clk 0:03:03]}  g6 {[%clk 0:03:00]} 7. h3 {[%clk 0:03:03]}  Bg7 {[%clk 0:03:00]} 8. Bd3 {[%clk 0:03:04]}  O-O {[%clk 0:03:01]} 9. Nf3 {[%clk 0:03:04]}  Re8 {[%clk 0:03:00]} 10. O-O {[%clk 0:03:04]}  c4 {[%clk 0:03:01]} 11. Bxc4 {[%clk 0:02:58]}  Nxe4 {[%clk 0:03:01]} 12. Nxe4 {[%clk 0:02:59]}  Rxe4 {[%clk 0:03:01]} 13. Bg5 {[%clk 0:02:58]}  Qa5 {[%clk 0:02:41]} 14. Qc2 {[%clk 0:02:41]}  Rxc4 {[%clk 0:01:26]} 15. Qxc4 {[%clk 0:02:40]}  Nd7 {[%clk 0:01:27]} 16. Bd2 {[%clk 0:02:31]}  Qd8 {[%clk 0:01:14]} 17. Bc3 {[%clk 0:02:31]}  Nb6 {[%clk 0:01:07]} 18. Qb3 {[%clk 0:02:28]}  Bf5 {[%clk 0:01:03]} 19. Rad1 {[%clk 0:01:43]}  Bxc3 {[%clk 0:00:59]} 20. Qxc3 {[%clk 0:01:43]}  Rc8 {[%clk 0:01:00]} 21. Qa5 {[%clk 0:01:37]}  a6 {[%clk 0:00:56]} 22. Rc1 {[%clk 0:01:29]}  Rc5 {[%clk 0:00:10]} 23. Rxc5 {[%clk 0:01:25]}  dxc5 {[%clk 0:00:11]} 24. Qxc5 {[%clk 0:01:13]}  Nxd5 {[%clk 0:00:11]} 25. Rd1 {[%clk 0:00:57]}  Be6 {[%clk 0:00:09]} 26. Rd4 {[%clk 0:00:26]}  h6 {[%clk 0:00:09]} 27. Nd2 {[%clk 0:00:16]}  b6 {[%clk 0:00:03]} 28. Qc6 {[%clk 0:00:16]}  Qg5 {[%clk 0:00:03]} 29. Ne4 {[%clk 0:00:12]}  Qe5 {[%clk 0:00:03]} 30. Rxd5 {[%clk 0:00:09]}  Bxd5 {[%clk 0:00:04]} 31. Qxd5 {[%clk 0:00:09]}  Qxb2 {[%clk 0:00:05]} 32. Nd6 {[%clk 0:00:07]}  Qf6 {[%clk 0:00:05]} 33. g3 {[%clk 0:00:06]}  h5 {[%clk 0:00:04]} 34. h4 {[%clk 0:00:07]}  a5 {[%clk 0:00:05]} 35. Qa8+ {[%clk 0:00:07]}  Kh7 {[%clk 0:00:05]} 36. Qd5 {[%clk 0:00:06]}  Kg8 {[%clk 0:00:04]} 37. a4 {[%clk 0:00:06]}  Qa1+ {[%clk 0:00:03]} 38. Kg2 {[%clk 0:00:06]}  Qf6 {[%clk 0:00:03]} 39. Nc4 {[%clk 0:00:04]}  Qa1 {[%clk 0:00:02]} 40. Ne5 {[%clk 0:00:04]}  Qa2 {[%clk 0:00:00]} 41. Qxa2 {[%clk 0:00:04]} 1-0


[Site "https://www.chess.com"]

[Event "Titled Tuesday Blitz July 25 Late 2023"]
[White "Wu, Derek"]
[Black "Deng, Henry"]
[WhiteFideId "30914558"]
[BlackFideId "30965454"]
[WhiteElo "2748"]
[BlackElo "2540"]
[Result "1-0"]
[Round "11"]
[TimeControl "180+2"]
[Date "2023.07.25"]
[WhiteClock "0:00:21"]
[BlackClock "0:00:52"]
[Board "33"]

1. e4 {[%clk 0:03:00]}  e5 {[%clk 0:02:59]} 2. Nf3 {[%clk 0:03:01]}  Nc6 {[%clk 0:02:59]} 3. Bb5 {[%clk 0:03:01]}  a6 {[%clk 0:02:58]} 4. Ba4 {[%clk 0:03:01]}  Nf6 {[%clk 0:02:59]} 5. d4 {[%clk 0:03:02]}  b5 {[%clk 0:02:51]} 6. Bb3 {[%clk 0:02:53]}  exd4 {[%clk 0:02:37]} 7. O-O {[%clk 0:02:52]}  Be7 {[%clk 0:02:32]} 8. e5 {[%clk 0:02:51]}  Ne4 {[%clk 0:02:32]} 9. Bd5 {[%clk 0:02:49]}  Nc5 {[%clk 0:02:31]} 10. Nxd4 {[%clk 0:02:49]}  Bb7 {[%clk 0:02:30]} 11. Re1 {[%clk 0:02:25]}  O-O {[%clk 0:02:20]} 12. Nc3 {[%clk 0:02:22]}  Ne6 {[%clk 0:02:16]} 13. Nf5 {[%clk 0:02:21]}  Bc5 {[%clk 0:02:10]} 14. Qg4 {[%clk 0:02:15]}  g6 {[%clk 0:02:06]} 15. Bh6 {[%clk 0:02:04]}  Re8 {[%clk 0:02:03]} 16. Rad1 {[%clk 0:01:51]}  Kh8 {[%clk 0:02:01]} 17. Ng3 {[%clk 0:01:38]}  Rb8 {[%clk 0:01:52]} 18. Qf3 {[%clk 0:01:35]}  Qe7 {[%clk 0:01:50]} 19. Nce4 {[%clk 0:01:16]}  Ncd4 {[%clk 0:01:46]} 20. Qf6+ {[%clk 0:01:05]}  Qxf6 {[%clk 0:01:45]} 21. Nxf6 {[%clk 0:01:02]}  Bxd5 {[%clk 0:01:45]} 22. Nxd5 {[%clk 0:01:01]}  Nxc2 {[%clk 0:01:44]} 23. Rf1 {[%clk 0:00:55]}  Ncd4 {[%clk 0:01:44]} 24. Nf6 {[%clk 0:00:49]}  Red8 {[%clk 0:01:41]} 25. Rfe1 {[%clk 0:00:46]}  Bf8 {[%clk 0:01:38]} 26. Bxf8 {[%clk 0:00:42]}  Rxf8 {[%clk 0:01:32]} 27. Nxd7 {[%clk 0:00:43]}  Rfc8 {[%clk 0:01:32]} 28. Nxb8 {[%clk 0:00:42]}  Rxb8 {[%clk 0:01:33]} 29. Ne2 {[%clk 0:00:39]}  Nc2 {[%clk 0:01:28]} 30. Rf1 {[%clk 0:00:38]}  c5 {[%clk 0:01:29]} 31. Rd7 {[%clk 0:00:35]}  Kg7 {[%clk 0:01:28]} 32. f4 {[%clk 0:00:34]}  Ncd4 {[%clk 0:01:21]} 33. Ng3 {[%clk 0:00:29]}  Nf8 {[%clk 0:01:14]} 34. Ra7 {[%clk 0:00:27]}  Rb6 {[%clk 0:01:14]} 35. f5 {[%clk 0:00:25]}  g5 {[%clk 0:01:04]} 36. Nh5+ {[%clk 0:00:24]}  Kh6 {[%clk 0:01:04]} 37. Nf6 {[%clk 0:00:24]}  Ne2+ {[%clk 0:01:00]} 38. Kh1 {[%clk 0:00:23]}  Nf4 {[%clk 0:01:00]} 39. g3 {[%clk 0:00:22]}  Nd3 {[%clk 0:00:56]} 40. Rxf7 {[%clk 0:00:22]}  Rb8 {[%clk 0:00:54]} 41. g4 {[%clk 0:00:21]}  Ng6 {[%clk 0:00:52]} 42. Rxh7# {[%clk 0:00:21]} 1-0


[Site "https://www.chess.com"]

[Event "Titled Tuesday Blitz July 25 Late 2023"]
[White "Mekhitarian, Krikor Sevag"]
[Black "Shapiro, Viktor"]
[WhiteFideId "2107660"]
[BlackFideId "4175700"]
[WhiteElo "2747"]
[BlackElo "2538"]
[Result "1-0"]
[Round "11"]
[TimeControl "180+2"]
[Date "2023.07.25"]
[WhiteClock "0:00:07"]
[BlackClock "0:00:00"]
[Board "34"]

1. Nf3 {[%clk 0:03:00]}  Nf6 {[%clk 0:03:00]} 2. c4 {[%clk 0:03:00]}  c5 {[%clk 0:03:00]} 3. Nc3 {[%clk 0:02:58]}  Nc6 {[%clk 0:03:00]} 4. g3 {[%clk 0:02:58]}  d6 {[%clk 0:03:00]} 5. Bg2 {[%clk 0:02:57]}  e6 {[%clk 0:02:58]} 6. O-O {[%clk 0:02:57]}  Bd7 {[%clk 0:02:57]} 7. d4 {[%clk 0:02:58]}  cxd4 {[%clk 0:02:57]} 8. Nxd4 {[%clk 0:02:58]}  a6 {[%clk 0:02:57]} 9. b3 {[%clk 0:02:58]}  Rc8 {[%clk 0:02:57]} 10. Bb2 {[%clk 0:02:58]}  Be7 {[%clk 0:02:57]} 11. Rc1 {[%clk 0:02:58]}  O-O {[%clk 0:02:57]} 12. Nc2 {[%clk 0:02:58]}  Qa5 {[%clk 0:02:54]} 13. a3 {[%clk 0:02:57]}  b5 {[%clk 0:02:53]} 14. b4 {[%clk 0:02:56]}  Qb6 {[%clk 0:02:49]} 15. cxb5 {[%clk 0:02:29]}  axb5 {[%clk 0:02:48]} 16. Ne4 {[%clk 0:02:30]}  Nxe4 {[%clk 0:02:38]} 17. Bxe4 {[%clk 0:02:30]}  Ne5 {[%clk 0:02:19]} 18. Bxe5 {[%clk 0:02:29]}  dxe5 {[%clk 0:02:16]} 19. Qxd7 {[%clk 0:02:26]}  Bg5 {[%clk 0:02:11]} 20. e3 {[%clk 0:02:19]}  f5 {[%clk 0:01:58]} 21. Bd3 {[%clk 0:02:13]}  Rc3 {[%clk 0:01:15]} 22. Qxb5 {[%clk 0:02:06]}  Qc7 {[%clk 0:01:13]} 23. Qa6 {[%clk 0:01:56]}  Kf7 {[%clk 0:01:02]} 24. Rcd1 {[%clk 0:01:25]}  Rd8 {[%clk 0:00:44]} 25. a4 {[%clk 0:01:07]}  Rd6 {[%clk 0:00:34]} 26. Qb5 {[%clk 0:01:06]}  Rb6 {[%clk 0:00:27]} 27. Qa5 {[%clk 0:01:01]}  Rd6 {[%clk 0:00:16]} 28. Qxe5 {[%clk 0:00:55]}  Bf6 {[%clk 0:00:16]} 29. Qb5 {[%clk 0:00:53]}  Rd5 {[%clk 0:00:13]} 30. Qa6 {[%clk 0:00:48]}  Rd6 {[%clk 0:00:13]} 31. Qa8 {[%clk 0:00:29]}  Rcxd3 {[%clk 0:00:13]} 32. Rxd3 {[%clk 0:00:26]}  Rxd3 {[%clk 0:00:14]} 33. Ne1 {[%clk 0:00:27]}  Rd1 {[%clk 0:00:13]} 34. Nf3 {[%clk 0:00:26]}  Rxf1+ {[%clk 0:00:12]} 35. Kxf1 {[%clk 0:00:25]}  Qc4+ {[%clk 0:00:13]} 36. Kg2 {[%clk 0:00:24]}  Qxb4 {[%clk 0:00:13]} 37. Qc6 {[%clk 0:00:22]}  g5 {[%clk 0:00:12]} 38. h3 {[%clk 0:00:21]}  g4 {[%clk 0:00:10]} 39. hxg4 {[%clk 0:00:18]}  fxg4 {[%clk 0:00:11]} 40. Ng1 {[%clk 0:00:12]}  h5 {[%clk 0:00:09]} 41. Ne2 {[%clk 0:00:12]}  e5 {[%clk 0:00:08]} 42. Nc1 {[%clk 0:00:09]}  Qa5 {[%clk 0:00:02]} 43. Nd3 {[%clk 0:00:07]}  Kg7 {[%clk 0:00:00]} 44. Nc5 {[%clk 0:00:07]} 1-0


[Site "https://www.chess.com"]

[Event "Titled Tuesday Blitz July 25 Late 2023"]
[White "Womacka, Mathias"]
[Black "Fisher_TheGalactic"]
[WhiteFideId "4611390"]
[WhiteElo "2533"]
[BlackElo "2693"]
[Result "1-0"]
[Round "11"]
[TimeControl "180+2"]
[Date "2023.07.25"]
[WhiteClock "0:02:03"]
[BlackClock "0:00:42"]
[Board "37"]

1. e4 {[%clk 0:03:00]}  b6 {[%clk 0:02:25]} 2. d4 {[%clk 0:02:58]}  Bb7 {[%clk 0:02:26]} 3. Bd3 {[%clk 0:02:59]}  Nf6 {[%clk 0:02:25]} 4. Qe2 {[%clk 0:02:55]}  e6 {[%clk 0:02:25]} 5. f4 {[%clk 0:02:53]}  d5 {[%clk 0:02:25]} 6. e5 {[%clk 0:02:52]}  Ne4 {[%clk 0:02:24]} 7. Nf3 {[%clk 0:02:52]}  c5 {[%clk 0:02:23]} 8. c3 {[%clk 0:02:51]}  cxd4 {[%clk 0:02:21]} 9. cxd4 {[%clk 0:02:51]}  Bb4+ {[%clk 0:02:22]} 10. Nbd2 {[%clk 0:02:50]}  Nc6 {[%clk 0:01:58]} 11. O-O {[%clk 0:02:49]}  Nxd2 {[%clk 0:01:55]} 12. Bxd2 {[%clk 0:02:50]}  Bxd2 {[%clk 0:01:55]} 13. Qxd2 {[%clk 0:02:50]}  O-O {[%clk 0:01:53]} 14. f5 {[%clk 0:02:49]}  exf5 {[%clk 0:01:50]} 15. Bxf5 {[%clk 0:02:49]}  Ne7 {[%clk 0:01:50]} 16. Bd3 {[%clk 0:02:47]}  Ng6 {[%clk 0:01:45]} 17. Qf2 {[%clk 0:02:35]}  Qe7 {[%clk 0:01:44]} 18. Qg3 {[%clk 0:02:34]}  Qb4 {[%clk 0:01:27]} 19. Rf2 {[%clk 0:02:26]}  Bc8 {[%clk 0:01:21]} 20. h4 {[%clk 0:02:18]}  Be6 {[%clk 0:01:10]} 21. h5 {[%clk 0:02:15]}  Ne7 {[%clk 0:01:10]} 22. h6 {[%clk 0:02:15]}  g6 {[%clk 0:01:10]} 23. Qg5 {[%clk 0:02:10]}  f5 {[%clk 0:00:50]} 24. a3 {[%clk 0:02:06]}  Qb3 {[%clk 0:00:42]} 25. Qxe7 {[%clk 0:02:05]}  Rae8 {[%clk 0:00:42]} 26. Qg7# {[%clk 0:02:03]} 1-0


[Site "https://www.chess.com"]

[Event "Titled Tuesday Blitz July 25 Late 2023"]
[White "Slovineanu, Viacheslav"]
[Black "Salik, Serkan"]
[WhiteFideId "13900510"]
[BlackFideId "30952492"]
[WhiteElo "2427"]
[BlackElo "2608"]
[Result "0-1"]
[Round "11"]
[TimeControl "180+2"]
[Date "2023.07.25"]
[WhiteClock "0:00:02"]
[BlackClock "0:00:17"]
[Board "41"]

1. d4 {[%clk 0:02:56]}  Nf6 {[%clk 0:02:52]} 2. Nf3 {[%clk 0:02:55]}  d6 {[%clk 0:02:53]} 3. Nc3 {[%clk 0:02:54]}  Bf5 {[%clk 0:02:50]} 4. Nh4 {[%clk 0:02:47]}  Bd7 {[%clk 0:02:26]} 5. e4 {[%clk 0:02:43]}  e5 {[%clk 0:02:26]} 6. Nf3 {[%clk 0:02:41]}  Nc6 {[%clk 0:02:24]} 7. Bc4 {[%clk 0:02:33]}  Be7 {[%clk 0:02:22]} 8. O-O {[%clk 0:02:24]}  O-O {[%clk 0:02:21]} 9. h3 {[%clk 0:02:24]}  exd4 {[%clk 0:02:00]} 10. Nxd4 {[%clk 0:02:23]}  Re8 {[%clk 0:02:01]} 11. Re1 {[%clk 0:02:20]}  Bf8 {[%clk 0:02:00]} 12. Bg5 {[%clk 0:02:17]}  h6 {[%clk 0:01:58]} 13. Bh4 {[%clk 0:02:14]}  Ne5 {[%clk 0:01:58]} 14. Bf1 {[%clk 0:02:00]}  Ng6 {[%clk 0:01:34]} 15. Bg3 {[%clk 0:01:52]}  a6 {[%clk 0:01:29]} 16. a4 {[%clk 0:01:51]}  Bc6 {[%clk 0:01:15]} 17. Nxc6 {[%clk 0:01:48]}  bxc6 {[%clk 0:01:16]} 18. Bc4 {[%clk 0:01:42]}  Nd7 {[%clk 0:01:16]} 19. Qd2 {[%clk 0:01:19]}  Qg5 {[%clk 0:01:13]} 20. Rad1 {[%clk 0:01:14]}  Nde5 {[%clk 0:01:05]} 21. Bb3 {[%clk 0:01:08]}  Rab8 {[%clk 0:00:46]} 22. Kh2 {[%clk 0:01:06]}  Qxd2 {[%clk 0:00:32]} 23. Rxd2 {[%clk 0:01:06]}  Nd7 {[%clk 0:00:32]} 24. Rb1 {[%clk 0:00:18]}  Nc5 {[%clk 0:00:29]} 25. Bc4 {[%clk 0:00:18]}  Nxe4 {[%clk 0:00:26]} 26. Nxe4 {[%clk 0:00:18]}  Rxe4 {[%clk 0:00:26]} 27. Bxa6 {[%clk 0:00:18]}  Rxa4 {[%clk 0:00:26]} 28. Bd3 {[%clk 0:00:15]}  Nf4 {[%clk 0:00:19]} 29. Bxf4 {[%clk 0:00:14]}  Rxf4 {[%clk 0:00:20]} 30. b3 {[%clk 0:00:13]}  Rf6 {[%clk 0:00:16]} 31. Re2 {[%clk 0:00:13]}  Re6 {[%clk 0:00:17]} 32. Rbe1 {[%clk 0:00:12]}  Rbe8 {[%clk 0:00:15]} 33. Rxe6 {[%clk 0:00:12]}  fxe6 {[%clk 0:00:16]} 34. f4 {[%clk 0:00:11]}  Kf7 {[%clk 0:00:16]} 35. g4 {[%clk 0:00:12]}  Kf6 {[%clk 0:00:16]} 36. Kg3 {[%clk 0:00:12]}  g5 {[%clk 0:00:17]} 37. h4 {[%clk 0:00:11]}  d5 {[%clk 0:00:16]} 38. fxg5+ {[%clk 0:00:10]}  hxg5 {[%clk 0:00:17]} 39. Rf1+ {[%clk 0:00:10]}  Kg7 {[%clk 0:00:17]} 40. hxg5 {[%clk 0:00:10]}  Bd6+ {[%clk 0:00:18]} 41. Kg2 {[%clk 0:00:09]}  e5 {[%clk 0:00:18]} 42. Bf5 {[%clk 0:00:09]}  e4 {[%clk 0:00:18]} 43. Kf2 {[%clk 0:00:08]}  Rh8 {[%clk 0:00:16]} 44. Rg1 {[%clk 0:00:06]}  Bc5+ {[%clk 0:00:16]} 45. Kf1 {[%clk 0:00:05]}  Bxg1 {[%clk 0:00:17]} 46. Kxg1 {[%clk 0:00:02]}  Rh3 {[%clk 0:00:17]} 0-1


[Site "https://www.chess.com"]